Cogmind - Beta 13 @@@ ROGUE MODE // 2024.03.17 @ 11:24:36 Player: J1ang-5h1 Result: Destroyed by P-70 Sage with High-powered Shock Rifle Performance ------------- Evolutions (6) 3000 Regions Visited (19) 3800 Robots Destroyed (160) 800 Value Destroyed (6257) 6257 Prototype IDs (10) 200 Alien Tech Used (0) 0 Bonus (4872) 4872 TOTAL SCORE: 18929 Bonus ------- High Alert Combat Kills 970 Follower Combat Kills 2724 Entered DSFs 500 Met Imprinter 300 Built Enhanced Grunts 300 Met R17 at Cetus 500 Friendly Fire -422 Cogmind --------- Core Integrity 0/1150 Matter 214/300 Energy 68/100 System Corruption 21% Temperature Cool (0) Movement Core (100) Ox1 Location -4/Factory Parts ------- > --- POWER (2) -------- (None) > --- PROPULSION (6) --- (None) > --- UTILITY (8) ------ Improved Target Analyzer > --- WEAPON (3) ------- Phasing Sabre > --- INVENTORY (5) ---- Reinforced Antimatter Reactor Centrium Medium Armor Plating Advanced Variable Charge Gun Peak State ------------ > --- POWER ------------ Quantum Reactor Quantum Reactor > --- PROPULSION ------- Medium Treads Medium Treads Centrium Heavy Treads Centrium Heavy Treads > --- UTILITY ---------- Advanced Coolant Injector Large Storage Unit Enhanced Optical Array Improved Signal Interpreter Advanced Targeting Computer Hardened Heavy Armor Plating Centrium Medium Armor Plating > --- WEAPON ----------- Dispersion Rifle Dispersion Rifle Advanced Variable Charge Gun > --- INVENTORY -------- Advanced Cooling System Energy Well Compact Matter Pod Improved Sensor Array Improved Target Analyzer Recoil Nullifier Kinecellerator Hardlight Generator Remote Force Field Advanced Hacking Suite Dispersion Rifle Advanced KE Penetrator Micro-nuke Launcher Phasing Sabre Phasing Sabre [Rating: 128] Favorites ----------- Power Heavy Deuterium Engine Engine Heavy Deuterium Engine Power Core Light Nuclear Core Reactor Quantum Reactor Propulsion Armored Huge Wheel Treads Centrium Heavy Treads Leg Aluminum Leg Wheel Armored Huge Wheel Utility Large Storage Unit Device Improved Cooling System Storage Large Storage Unit Processor Improved Signal Interpreter Hackware Advanced Hacking Suite Protection Improved Light Armor Plating Weapon Heavy Ion Cannon Energy Gun Dispersion Rifle Energy Cannon Heavy Ion Cannon Ballistic Gun Flak Gun Ballistic Cannon Mass Driver Launcher Micro-nuke Launcher Slashing Weapon Phasing Sabre Build | -11 -10 -9 -9 -8 -7 -7 -7 -7 -7 -7 -6 -6 -6 -6 -6 -6 -5 -5 -4 ------- Run | Yrd Mat Mat Min Mat Fac Was Fac Low Low Zio Pro Fac Ext Cet Arc Hub Fac DSF Fac Slots Evolved 12 | . . 2 . 2 2 . . . . . . 2 . . . . 2 . 2 Power 1 | . . . . . . . . . . . . . . . . . 1 . . Propulsion 4 | . . . . . . . . . . . . 2 . . . . . . 2 Utility 6 | . . 2 . 2 2 . . . . . . . . . . . . . . Weapon 1 | . . . . . . . . . . . . . . . . . 1 . . Parts Attached 195 | . 12 9 3 26 6 7 3 . 3 1 . 9 50 19 2 10 3 6 26 Power 10 | . 1 1 2 2 1 . . . . . . . . 1 . . 1 . 1 Engine 6 | . 1 1 2 1 1 . . . . . . . . . . . . . . Core 1 | . . . . 1 . . . . . . . . . . . . . . . Reactor 3 | . . . . . . . . . . . . . . 1 . . 1 . 1 Propulsion 20 | . 2 2 . 4 1 1 . . 1 . . 1 2 2 . . . . 4 Treads 11 | . . 2 . 4 1 . . . . . . . . 2 . . . . 2 Leg . | . . . . . . . . . . . . . . . . . . . . Wheel 9 | . 2 . . . . 1 . . 1 . . 1 2 . . . . . 2 Hover . | . . . . . . . . . . . . . . . . . . . . Flight . | . . . . . . . . . . . . . . . . . . . . Utility 64 | . 3 5 1 12 3 4 3 . . . . . 13 4 . 2 . 2 12 Device 38 | . 2 4 1 5 2 1 3 . . . . . 9 2 . 1 . 1 7 Storage 3 | . 1 . . 1 . . . . . . . . . . . . . . 1 Processor 9 | . . 1 . 4 1 1 . . . . . . 1 . . . . . 1 Hackware 1 | . . . . . . . . . . . . . . . . . . . 1 Protection 13 | . . . . 2 . 2 . . . . . . 3 2 . 1 . 1 2 Artifact . | . . . . . . . . . . . . . . . . . . . . Weapon 101 | . 6 1 . 8 1 2 . . 2 1 . 8 35 12 2 8 2 4 9 Energy Gun 9 | . 4 . . . . . . . . . . . . . . . . 3 2 Energy Cannon 23 | . . . . 2 1 1 . . 1 . . 1 13 1 . 2 1 . . Ballistic Gun 9 | . 1 1 . 5 . . . . . . . . . . . . . . 2 Ballistic Cannon 18 | . . . . . . . . . . 1 . 3 4 5 1 3 . 1 . Launcher 14 | . 1 . . 1 . 1 . . 1 . . . 4 3 . 1 . . 2 Special Weapon . | . . . . . . . . . . . . . . . . . . . . Impact Weapon . | . . . . . . . . . . . . . . . . . . . . Slashing Weapon 28 | . . . . . . . . . . . . 4 14 3 1 2 1 . 3 Piercing Weapon . | . . . . . . . . . . . . . . . . . . . . Special Melee Weapon . | . . . . . . . . . . . . . . . . . . . . Unidentified Prototypes 5 | . . . . . 1 . . . . . . . . 2 . . . 1 1 Corrupted Parts 2 | . . . . . . . . . . . . . . 1 . . . . 1 System Corruption 8 | . . . . . . . . . . . . . . 2 . . . . 6 Parts Lost 41 | . 4 2 . 2 . 1 . . . . . . 5 3 . 3 . 1 20 Power 5 | . 1 1 . . . . . . . . . . . 1 . . . . 2 Propulsion 8 | . 1 . . . . . . . . . . . 1 . . . . . 6 Utility 21 | . . 1 . 2 . 1 . . . . . . 4 2 . 2 . 1 8 Weapon 7 | . 2 . . . . . . . . . . . . . . 1 . . 4 Highest Loss Streak 12 | . 2 2 . 1 . 1 . . . . . . 2 2 . 2 . 1 12 To Critical Strikes . | . . . . . . . . . . . . . . . . . . . . Average Slot Usage (%) 91 | . 93 98 100 99 100 94 92 92 92 92 92 86 85 84 86 83 82 82 72 Engine 5 | . 14 11 11 5 5 7 7 7 7 7 7 6 6 . . . . . . Reactor 1 | . . . . . . . . . . . . . . 5 6 6 11 11 7 Treads 8 | . . 15 22 18 15 4 . . . . . . . 6 13 13 11 11 15 Wheel 5 | . 17 6 . . . 4 7 7 7 7 7 13 12 5 . . . . . Device 13 | . 9 22 22 11 15 15 15 15 15 15 15 13 13 7 13 11 5 5 7 Storage 7 | . 14 11 11 9 7 7 7 7 7 7 7 6 6 6 6 6 5 5 4 Processor 23 | . . 9 11 26 30 30 30 30 30 30 30 26 24 24 20 20 17 17 10 Protection 6 | . . . . 6 7 7 7 7 7 7 7 6 6 12 13 11 11 11 6 Energy Gun 2 | . 16 12 11 . . . . . . . . . . . . . . 7 11 Energy Cannon 6 | . . . . 5 15 7 15 15 14 12 7 5 5 1 . 5 11 6 . Ballistic Gun 3 | . 9 9 11 11 . . . . . . . . . . . . . . 1 Ballistic Cannon 2 | . . . . . . . . . . 2 7 4 3 9 7 5 1 1 . Naked Turns 1 | . . . . . . . . . . . . . . . . . . . 1 Heaviest Build 113 | 12 30 33 35 50 57 60 55 53 56 54 54 54 62 74 75 85 113 113 113 Greatest Support 216 | 20 26 40 40 44 50 50 28 28 28 28 28 56 56 160 160 160 160 160 216 Greatest Overweight (x) 11 | . 1 1 . 1 1 2 1 1 1 1 1 . 1 2 . . . . 11 Average Overweight (x) . | . . . . . 1 1 1 1 1 1 1 . . . . . . . . Largest Inventory Capacity 15 | 8 15 15 15 15 15 15 15 15 15 15 15 15 15 15 15 15 15 15 15 Average Capacity 14 | 8 9 15 15 15 15 15 15 15 15 15 15 15 15 15 15 15 15 15 14 Most Carried 15 | 6 8 14 15 15 15 15 15 15 15 15 15 15 15 15 15 15 13 15 15 Average Carried 14 | 6 7 11 14 14 14 13 14 15 14 14 15 14 14 14 15 14 12 14 12 Final Capacity 15 | 8 15 15 15 15 15 15 15 15 15 15 15 15 15 15 15 15 15 15 5 Final Carried 15 | 6 8 14 15 15 15 15 15 15 15 15 15 15 14 15 15 14 12 14 3 Class Distribution -------------------- 40% | Skirmisher 25% | Mutant 21% | Scavenger-Mutant 3% | Scavenger-Tank Dominant Class ---------------- Mutant | -10/Materials Mutant | -9/Materials Mutant | -9/Mines Mutant | -8/Materials Skirmisher | -7/Factory Skirmisher | -7/Waste Skirmisher | -7/Factory Skirmisher | -7/Lower Caves Skirmisher | -7/Lower Caves Skirmisher | -7/Zion Skirmisher | -6/Proximity Caves Skirmisher | -6/Factory Scavenger-Mutant | -6/Extension Scavenger-Mutant | -6/Cetus Scavenger-Mutant | -6/Archives Scavenger-Mutant | -6/Hub_04(d) Scavenger-Mutant | -5/Factory Scavenger-Tank | -5/DSF Scavenger-Tank | -4/Factory Resources | -11 -10 -9 -9 -8 -7 -7 -7 -7 -7 -7 -6 -6 -6 -6 -6 -6 -5 -5 -4 ----------- Run | Yrd Mat Mat Min Mat Fac Was Fac Low Low Zio Pro Fac Ext Cet Arc Hub Fac DSF Fac Matter Collected 5028 | 200 405 195 114 760 65 581 60 7 229 66 45 212 845 398 83 277 . 156 330 Remotely . | . . . . . . . . . . . . . . . . . . . . Salvage Created 6925 | . 650 348 92 1364 294 1413 109 40 81 . 14 204 823 340 . 576 . 152 425 Parts 264 | . 35 18 5 83 14 2 4 5 3 . 1 7 24 15 . 18 . 7 23 Haulers Intercepted 4 | . 1 . . 3 . . . . . . . . . . . . . . . Recyclers Shooed 2 | . 1 . . 1 . . . . . . . . . . . . . . . Parts Field Recycled . | . . . . . . . . . . . . . . . . . . . . Retrieved Matter . | . . . . . . . . . . . . . . . . . . . . Parts Self-Destructed 8 | . . . . . . . . 5 2 . 1 . . . . . . . . Prevented . | . . . . . . . . . . . . . . . . . . . . Kills | -11 -10 -9 -9 -8 -7 -7 -7 -7 -7 -7 -6 -6 -6 -6 -6 -6 -5 -5 -4 ------- Run | Yrd Mat Mat Min Mat Fac Was Fac Low Low Zio Pro Fac Ext Cet Arc Hub Fac DSF Fac Combat Hostiles Destroyed 126 | . 11 6 2 31 2 6 2 1 6 . 2 4 18 10 . 12 . 2 11 Melee 15 | . . . . . . . . . . . . 2 10 2 . 1 . . . Guns 43 | . 8 6 2 19 . . . . . . . . . . . . . . 8 Cannons 34 | . . . . 9 2 . 2 1 . . 2 2 3 2 . 9 . 2 . AOE 32 | . 3 . . 3 . 6 . . 6 . . . 4 6 . 2 . . 2 Classes Destroyed 21 | . 8 1 1 3 1 1 . . 1 . 1 . 1 . . 1 . . 2 Worker 5 | . 2 1 . 1 . . . . . . . . . . . 1 . . . Builder 6 | . 1 1 . . . . . . . . . . 3 . . . . . 1 Tunneler 2 | . 1 . . 1 . . . . . . . . . . . . . . . Hauler 4 | . 1 . . 3 . . . . . . . . . . . . . . . Recycler 7 | . 3 . . 2 2 . . . . . . . . . . . . . . Operator 1 | . . . . 1 . . . . . . . . . . . . . . . Drone 2 | . . . . . . . . . . . 2 . . . . . . . . Watcher 8 | . 2 1 . 3 1 . . . . . . . . 1 . . . . . Swarmer 24 | . 3 . . 10 . . . . 3 . . . . 5 . . . . 3 Saboteur 1 | . . . . . . . . . . . . . . . . . . . 1 Grunt 56 | . 8 5 1 13 . . . . 2 . . 3 14 3 . 7 . . . Brawler 4 | . . . 1 . . . . . 1 . . . . . . 2 . . . Duelist 2 | . . . . 1 . . . . . . . . . . . 1 . . . Protector 1 | . . . . . . . . . . . . . . . . . . . 1 Sentry 12 | . . 1 . 6 . . 1 . . . . . 2 . . . . . 2 Specialist 3 | . . . . . . . . . . . . . . . . 1 . 2 . Hunter 2 | . . . . 1 . . . . . . . . . . . . . . 1 Programmer 9 | . . . . . 2 . 1 1 . . . 1 . . . 1 . . 3 Behemoth 2 | . . . . . . . . . . . . . 2 . . . . . . Compactor 6 | . . . . . . 6 . . . . . . . . . . . . . Cetus Guard 2 | . . . . . . . . . . . . . . 2 . . . . . Mutant 1 | . . . . . . . . . 1 . . . . . . . . . . Best Kill Streak 6 | . 5 3 2 6 2 3 1 1 6 . 1 2 3 3 . 6 . 2 3 Combat Bots Only 6 | . 3 2 2 4 1 3 1 1 6 . 1 2 3 3 . 6 . 2 3 Max Kills in Single Turn 3 | . 3 1 1 2 1 1 1 1 3 . 1 1 2 3 . 2 . 1 2 Gunslinging 1 | . . . . 1 . . . . . . . . . . . . . . 1 Exploded 3 | . 2 . . 1 . 1 . . 2 . . . 2 3 . 2 . . 2 Melee 1 | . . . . . . . . . . . . 1 1 1 . 1 . . . Uniques/NPCs Destroyed . | . . . . . . . . . . . . . . . . . . . . Combat | -11 -10 -9 -9 -8 -7 -7 -7 -7 -7 -7 -6 -6 -6 -6 -6 -6 -5 -5 -4 -------- Run | Yrd Mat Mat Min Mat Fac Was Fac Low Low Zio Pro Fac Ext Cet Arc Hub Fac DSF Fac Hostile Shots Fired 1070 | . 79 29 6 129 20 . 14 4 15 . . 24 193 28 3 117 . 33 376 Missed 346 | . 22 10 2 35 7 . 6 1 3 . . 8 57 14 1 22 . 17 141 Damage Taken 11059 | . 739 356 58 1265 190 63 79 47 183 . . 294 1215 342 48 1854 . 293 4033 Core 1878 | . 239 92 . 144 14 . 12 . 13 . . 19 150 . . 30 . . 1165 Absorbed by Shields 1006 | . . . . . . . 12 . . . . . 456 83 . . . . 455 Reduced by Siege Mode 165 | . . . . . . . . . . . . . . . . 165 . . . Regen/Repaired (Parts) 324 | . . . . 59 . . . . . 265 . . . . . . . . . Core Remaining (%) 74 | 100 4 . 77 73 . . . . . . 94 . . . . 76 . 100 . Volleys Fired 428 | . 62 30 8 86 10 21 5 2 8 1 31 31 32 14 5 32 . 2 48 Largest 3 | . 2 2 2 2 2 2 2 2 2 1 2 2 2 2 2 2 . 3 3 Hottest 264 | . 105 88 88 130 130 114 130 130 130 65 122 122 130 114 142 142 . 207 264 Shots Fired 771 | . 113 58 16 168 20 23 10 5 11 1 36 51 52 22 10 59 . 6 110 Gun 385 | . 111 58 16 94 . . . . . . . . . . . . . . 106 Cannon 329 | . . . . 70 20 2 10 5 5 1 36 51 40 18 10 55 . 6 . Launcher 57 | . 2 . . 4 . 21 . . 6 . . . 12 4 . 4 . . 4 Special . | . . . . . . . . . . . . . . . . . . . . Kinetic 323 | . 71 30 8 93 . . . . . . 5 20 18 18 9 27 . 2 22 Thermal 391 | . 40 28 8 71 20 2 10 5 5 1 31 31 22 . 1 28 . 4 84 Explosive 57 | . 2 . . 4 . 21 . . 6 . . . 12 4 . 4 . . 4 Electromagnetic . | . . . . . . . . . . . . . . . . . . . . Robot Hit Streak 27 | . 11 12 4 14 5 7 14 15 5 . 6 5 21 6 2 8 . 2 27 Robot Miss Streak 7 | . 4 3 2 7 2 1 . 2 3 . 6 3 3 3 2 4 . 2 4 Penetration Max 1 | . . . . . . . . . . . . . . 1 . . . . 1 Secondary Targets 4 | . 1 . . 2 . . . . . . . . . . . . . . 1 Max Gunslinging Chain 1 | . 1 . . 1 . . . . . . . . . . . . . . 1 Shots Hit Robots 522 | . 74 38 11 127 13 17 10 2 5 . 2 23 73 11 6 41 . 3 66 Core Hits 335 | . 32 13 3 134 4 8 3 1 11 . 2 6 33 18 4 30 . 3 30 Critical Kills 10 | . . . . . 1 . . . . . . . 1 1 . 5 . 1 1 Critical Parts Destroyed 14 | . . . . . . . . . . . . . 3 1 1 2 . . 7 Critical Strikes 39 | . 1 2 . . 1 . . . . . . . 12 3 1 10 . 1 8 Burn 3 | . 1 2 . . . . . . . . . . . . . . . . . Meltdown 2 | . . . . . 1 . . . . . . . 1 . . . . . . Destroy 23 | . . . . . . . . . . . . . 3 3 1 7 . 1 8 Sever 11 | . . . . . . . . . . . . . 8 . . 3 . . . Melee Attacks 107 | . . . . . . . . . . . . 17 52 17 4 13 1 . 3 Impact . | . . . . . . . . . . . . . . . . . . . . Slashing 107 | . . . . . . . . . . . . 17 52 17 4 13 1 . 3 Piercing . | . . . . . . . . . . . . . . . . . . . . Sneak Attacks 5 | . . . . . . . . . . . . . 5 . . . . . . Combat Hostiles 4 | . . . . . . . . . . . . . 4 . . . . . . Follow-up Attacks 14 | . . . . . . . . . . . . 1 11 . . 2 . . . Damage Inflicted 22123 | . 1445 697 178 2915 417 3547 318 68 1117 . 90 724 3746 1588 212 2019 . 91 2951 Guns 5087 | . 968 622 178 1559 . . . . . . . . . . . . . . 1760 Cannons 4819 | . . . . 1162 417 27 318 68 . . 90 391 738 439 212 866 . 91 . Explosions 9716 | . 477 75 . 194 . 3520 . . 1117 . . . 1175 1057 . 910 . . 1191 Melee 2501 | . . . . . . . . . . . . 333 1833 92 . 243 . . . Ramming . | . . . . . . . . . . . . . . . . . . . . Kinetic 4407 | . 580 360 97 1546 . . . . . . 34 211 349 439 183 301 . 35 272 Thermal 5724 | . 613 262 81 1175 417 27 318 68 . . 56 180 389 . 29 565 . 56 1488 Explosive 9491 | . 252 75 . 194 . 3520 . . 1117 . . . 1175 1057 . 910 . . 1191 Electromagnetic . | . . . . . . . . . . . . . . . . . . . . Impact . | . . . . . . . . . . . . . . . . . . . . Slashing 2501 | . . . . . . . . . . . . 333 1833 92 . 243 . . . Piercing . | . . . . . . . . . . . . . . . . . . . . Highest Corruption 21 | . 3 . . . 2 2 3 4 4 4 . . . 2 2 3 . . 21 Average Corruption 3 | . 2 . . . 1 2 2 3 4 4 . . . 2 2 2 . . 11 Corruption Purged . | . . . . . . . . . . . . . . . . . . . . Corruption Blocked . | . . . . . . . . . . . . . . . . . . . . Effects 90 | . 1 . . . 6 4 6 6 13 3 . . . 5 6 14 . . 26 Message Errors 20 | . . . . . . . 3 1 4 . . . . 1 3 5 . . 3 Matter Fused 23 | . 1 . . . 2 1 . 1 5 . . . . 2 . 4 . . 7 Heat Flow Errors 14 | . . . . . . 2 2 1 . 1 . . . . 2 2 . . 4 Energy Discharges 10 | . . . . . 1 . . 1 2 1 . . . 1 . 1 . . 3 Parts Fused 1 | . . . . . . . . . . . . . . . . 1 . . . Data Loss (minor) 9 | . . . . . 2 . . 1 . . . . . 1 1 . . . 4 Data Loss (major) 3 | . . . . . 1 . 1 . 1 . . . . . . . . . . Misfires 3 | . . . . . . 1 . 1 1 . . . . . . . . . . Alerts 2 | . . . . . . . . . . 1 . . . . . . . . 1 Misdirections 4 | . . . . . . . . . . . . . . . . . . . 4 Weapon Failures 1 | . . . . . . . . . . . . . . . . 1 . . . Overload Shots . | . . . . . . . . . . . . . . . . . . . . Overflow Damage 464 | . 60 . . 27 20 . 23 . 77 . . 11 58 166 . . . . 22 Projectiles 84 | . . . . 27 20 . 23 . . . . 11 3 . . . . . . Explosions 328 | . 60 . . . . . . . 77 . . . 3 166 . . . . 22 Melee 52 | . . . . . . . . . . . . . 52 . . . . . . Knockbacks 5 | . . . . . . . . . . . . 1 1 . . 3 . . . Impact . | . . . . . . . . . . . . . . . . . . . . Kinetic 5 | . . . . . . . . . . . . 1 1 . . 3 . . . Secondary . | . . . . . . . . . . . . . . . . . . . . Self-Inflicted Damage 301 | . 72 81 . . . 65 . . 1 . . . 16 28 . . . . 38 Shots 11 | . 1 2 . . . 3 . . 1 . . . 2 1 . . . . 1 Rammed . | . . . . . . . . . . . . . . . . . . . . Targets Rammed . | . . . . . . . . . . . . . . . . . . . . Kicked . | . . . . . . . . . . . . . . . . . . . . Crushed . | . . . . . . . . . . . . . . . . . . . . Highest Temperature 394 | . 102 9 . 210 105 156 316 190 . 228 . . 29 . 209 140 . 144 394 Average Temperature 90 | . 25 3 . 83 36 51 139 112 . 124 . . 15 . 101 35 . 76 129 Received Heat Transfer 2606 | . 354 147 12 540 . . 18 . 9 . . 126 407 25 . 606 . 105 257 Effects 1 | . . . . . . . . . . . . . . . . . . . 1 Shutdowns 1 | . . . . . . . . . . . . . . . . . . . 1 Siege Activations 2 | . . . . . . . . . . . . . . . . 2 . . . Total Turns 72 | . . . . . . . . . . . . . . . . 72 . . . Longest Duration 39 | . . . . . . . . . . . . . . . . 39 . . . Robots Corrupted . | . . . . . . . . . . . . . . . . . . . . Combat Hostiles . | . . . . . . . . . . . . . . . . . . . . Parts Fried 2 | . . . . . . . . . . . . . 2 . . . . . . Impact Corruptions . | . . . . . . . . . . . . . . . . . . . . Robots Melted 3 | . . . . . 1 . . . . . . . 1 . . . . . 1 Combat Hostiles 2 | . . . . . . . . . . . . . 1 . . . . . 1 Parts Melted 13 | . 1 1 . 5 4 . . . . . . . . . . . . . 2 Heat Transferred 8217 | . 1167 777 185 1591 481 37 370 74 . . 74 222 518 . 37 649 . 74 1961 Parts Sabotaged . | . . . . . . . . . . . . . . . . . . . . Parts Stolen . | . . . . . . . . . . . . . . . . . . . . Parts Stripped . | . . . . . . . . . . . . . . . . . . . . Power Chain Reactions . | . . . . . . . . . . . . . . . . . . . . Alert | -11 -10 -9 -9 -8 -7 -7 -7 -7 -7 -7 -6 -6 -6 -6 -6 -6 -5 -5 -4 ------- Run | Yrd Mat Mat Min Mat Fac Was Fac Low Low Zio Pro Fac Ext Cet Arc Hub Fac DSF Fac Peak Influence 1272 | . 239 348 107 404 168 83 131 . . . . 543 1228 1272 758 1124 700 540 384 Initial 624 | . . 100 57 41 168 7 56 . . . . 452 152 624 508 195 550 490 277 Average 339 | . 123 191 94 194 80 61 64 . . . . 424 644 889 700 644 655 516 271 Maximum Alert Level 4 | . 1 1 . 2 . . . . . . . 2 4 4 3 4 3 2 1 Low Security (%) 44 | 100 68 63 100 55 100 100 100 . . . . 3 5 . . 5 . . 20 Level 1 27 | . 31 36 . 43 . . . . . . . 28 28 . . 31 . . 79 Level 2 12 | . . . . . . . . . . . . 68 16 32 39 24 29 100 . Level 3 12 | . . . . . . . . . . . . . 43 43 60 18 70 . . Level 4 3 | . . . . . . . . . . . . . 6 23 . 19 . . . Level 5 . | . . . . . . . . . . . . . . . . . . . . High Security . | . . . . . . . . . . . . . . . . . . . . Max Security . | . . . . . . . . . . . . . . . . . . . . Squads Dispatched 30 | . 2 . . 2 1 . 1 . . . . 2 8 1 . 7 3 1 2 Investigation 10 | . 1 . . . . . . . . . . . 4 1 . 1 2 . 1 Extermination 5 | . . . . . 1 . 1 . . . . 1 . . . 1 . . 1 Reinforcement 8 | . 1 . . 2 . . . . . . . 1 3 . . . . 1 . Assault 5 | . . . . . . . . . . . . . 1 . . 3 1 . . Garrison 2 | . . . . . . . . . . . . . . . . 2 . . . Intercept . | . . . . . . . . . . . . . . . . . . . . Searches Triggered 1 | . . . . . . . . . . . . 1 . . . . . . . Construction Impeded 2 | . . . . 1 . . . . . . . . 1 . . . . . . Haulers Reinforced . | . . . . . . . . . . . . . . . . . . . . Active Scanning Responses . | . . . . . . . . . . . . . . . . . . . . Cargo Convoy Interrupts 1 | . . . . . . . . . . . . . . . . . . . 1 Stealth | -11 -10 -9 -9 -8 -7 -7 -7 -7 -7 -7 -6 -6 -6 -6 -6 -6 -5 -5 -4 --------- Run | Yrd Mat Mat Min Mat Fac Was Fac Low Low Zio Pro Fac Ext Cet Arc Hub Fac DSF Fac Distress Signals 16 | . 2 2 . 4 1 . . . . . . 3 2 2 . . . . . Communications Jammed . | . . . . . . . . . . . . . . . . . . . . Distress Signals . | . . . . . . . . . . . . . . . . . . . . Times Spotted 265 | . 20 12 2 48 7 5 2 1 6 . 4 11 50 22 6 32 . 9 28 Peak Tracking Total 13 | . 5 3 2 5 2 2 1 1 6 . 2 5 5 6 2 7 . 6 13 Tactical Retreats 16 | . . 1 . 6 . . . . . . . 2 5 . . 1 . . 1 Traps | -11 -10 -9 -9 -8 -7 -7 -7 -7 -7 -7 -6 -6 -6 -6 -6 -6 -5 -5 -4 ------- Run | Yrd Mat Mat Min Mat Fac Was Fac Low Low Zio Pro Fac Ext Cet Arc Hub Fac DSF Fac Traps Triggered 7 | . 2 . . . 1 . . . . . . . 3 . . . . 1 . Indirectly . | . . . . . . . . . . . . . . . . . . . . Trap Hack Attempts . | . . . . . . . . . . . . . . . . . . . . Triggered . | . . . . . . . . . . . . . . . . . . . . Disarmed . | . . . . . . . . . . . . . . . . . . . . Reprogrammed . | . . . . . . . . . . . . . . . . . . . . Reused . | . . . . . . . . . . . . . . . . . . . . Traps Extracted . | . . . . . . . . . . . . . . . . . . . . Installed . | . . . . . . . . . . . . . . . . . . . . Triggered . | . . . . . . . . . . . . . . . . . . . . Machines | -11 -10 -9 -9 -8 -7 -7 -7 -7 -7 -7 -6 -6 -6 -6 -6 -6 -5 -5 -4 ---------- Run | Yrd Mat Mat Min Mat Fac Was Fac Low Low Zio Pro Fac Ext Cet Arc Hub Fac DSF Fac Machines Disabled 32 | . 3 2 . . . . . . . . . 3 9 1 5 8 1 . . Max in Single Turn 2 | . 2 2 . . . . . . . . . 1 1 . 1 2 1 . . Garrison Access 2 | . . . . . . . . . . . . . . . . 1 1 . . Machines Repaired . | . . . . . . . . . . . . . . . . . . . . Machines Dismantled . | . . . . . . . . . . . . . . . . . . . . Machines Sabotaged . | . . . . . . . . . . . . . . . . . . . . Overloaded Fab Kills . | . . . . . . . . . . . . . . . . . . . . Hacking | -11 -10 -9 -9 -8 -7 -7 -7 -7 -7 -7 -6 -6 -6 -6 -6 -6 -5 -5 -4 --------- Run | Yrd Mat Mat Min Mat Fac Was Fac Low Low Zio Pro Fac Ext Cet Arc Hub Fac DSF Fac Machines Accessed 52 | . 6 1 . 8 1 . 4 . 1 . . 4 11 1 1 8 2 . 4 Terminals 37 | . 6 1 . 4 . . 2 . . . . 1 11 1 . 7 1 . 3 Fabricators 5 | . . . . . 1 . 2 . . . . 2 . . . . . . . Repair Stations 3 | . . . . 1 . . . . . . . 1 . . . . . . 1 Recycling Units 2 | . . . . 2 . . . . . . . . . . . . . . . Scanalyzers 1 | . . . . 1 . . . . . . . . . . . . . . . Garrison Access 2 | . . . . . . . . . . . . . . . . 1 1 . . Total Hacks 177 | . 20 4 . 33 2 . 9 . 1 . . 9 31 2 25 25 5 . 11 Successful 94 | . 8 3 . 22 1 . . . 1 . . 2 12 . 25 12 1 . 7 Failed 83 | . 12 1 . 11 1 . 9 . . . . 7 19 2 . 13 4 . 4 Catastrophic 17 | . 2 . . . . . 1 . . . . 3 5 1 . 3 1 . 1 Database Lockouts . | . . . . . . . . . . . . . . . . . . . . Manual 52 | . 12 3 . 9 . . 3 . . 1 . 3 1 4 2 10 . . 4 Terminals 110 | . 20 4 . 13 . . 6 . . . . 2 31 2 . 22 3 . 7 Fabricators 10 | . . . . . 2 . 3 . . . . 5 . . . . . . . Repair Stations 8 | . . . . 2 . . . . . . . 2 . . . . . . 4 Recycling Units 8 | . . . . 8 . . . . . . . . . . . . . . . Scanalyzers 10 | . . . . 10 . . . . . . . . . . . . . . . Garrison Access 5 | . . . . . . . . . . . . . . . . 3 2 . . Terminal Hacks 63 | . 5 2 . 4 . . . . 1 . . . 12 . 25 9 1 . 4 Record 25 | . . . . . . . . . . . . . . . 25 . . . . Part Schematic 2 | . . . . . . . . . . . . . . . . 2 . . . Robot Analysis 3 | . 2 1 . . . . . . . . . . . . . . . . . Prototype ID Bank 4 | . 3 . . 1 . . . . . . . . . . . . . . . Open Door 8 | . . . . . . . . . 1 . . . 7 . . . . . . Open DSF 2 | . . . . . . . . . . . . . . . . . 1 . 1 Branch Access Points 2 | . . . . . . . . . . . . . . . . 1 . . 1 Emergency Access Points 1 | . . . . . . . . . . . . . . . . 1 . . . Terminal Index 1 | . . . . . . . . . . . . . . . . . . . 1 Scanalyzer Index 1 | . . . . 1 . . . . . . . . . . . . . . . Alert Level 4 | . . . . . . . . . . . . . 2 . . 1 . . 1 Unreport Threat 4 | . . . . 1 . . . . . . . . 2 . . 1 . . . Locate Traps 3 | . . 1 . . . . . . . . . . 1 . . 1 . . . Zone Layout 3 | . . . . 1 . . . . . . . . . . . 2 . . . Fabricator Hacks 2 | . . . . . 1 . . . . . . 1 . . . . . . . Load Schematic 1 | . . . . . . . . . . . . 1 . . . . . . . Build 1 | . . . . . 1 . . . . . . . . . . . . . . Repair Station Hacks 4 | . . . . 2 . . . . . . . 1 . . . . . . 1 Scan Component 3 | . . . . 1 . . . . . . . 1 . . . . . . 1 Repair 1 | . . . . 1 . . . . . . . . . . . . . . . Recycling Unit Hacks 2 | . . . . 2 . . . . . . . . . . . . . . . Report Inventory 1 | . . . . 1 . . . . . . . . . . . . . . . Retrieve Components 1 | . . . . 1 . . . . . . . . . . . . . . . Scanalyzer 9 | . . . . 9 . . . . . . . . . . . . . . . Insert Component 4 | . . . . 4 . . . . . . . . . . . . . . . Analyze 5 | . . . . 5 . . . . . . . . . . . . . . . Garrison Access Hacks . | . . . . . . . . . . . . . . . . . . . . Unauthorized Hacks 14 | . 3 1 . 5 . . . . . . . . . . . 3 . . 2 Terminals 12 | . 3 1 . 3 . . . . . . . . . . . 3 . . 2 Botnet 12 | . 3 1 . 3 . . . . . . . . . . . 3 . . 2 Fabricators . | . . . . . . . . . . . . . . . . . . . . Repair Stations . | . . . . . . . . . . . . . . . . . . . . Recycling Units 2 | . . . . 2 . . . . . . . . . . . . . . . Reject 1 | . . . . 1 . . . . . . . . . . . . . . . Mask 1 | . . . . 1 . . . . . . . . . . . . . . . Scanalyzers . | . . . . . . . . . . . . . . . . . . . . Garrison Access . | . . . . . . . . . . . . . . . . . . . . Data Cores Recovered 1 | . . . . . . . . . . . . . . . . 1 . . . Used . | . . . . . . . . . . . . . . . . . . . . Hacking Detections 44 | . 6 1 . 8 1 . 4 . . . . 4 8 1 . 6 2 . 3 Full Trace Events 12 | . 2 . . 1 . . . . . . . . 4 1 . 1 2 . 1 Feedback Events . | . . . . . . . . . . . . . . . . . . . . Feedback Blocked . | . . . . . . . . . . . . . . . . . . . . Robot Schematics Acquired 4 | . . . . . . . . . . 4 . . . . . . . . . Robots Built . | . . . . . . . . . . . . . . . . . . . . Authchips . | . . . . . . . . . . . . . . . . . . . . Time . | . . . . . . . . . . . . . . . . . . . . Total Robot Build Rating . | . . . . . . . . . . . . . . . . . . . . Part Schematics Acquired 20 | . . . . 4 . . . . . 14 . . . . . 2 . . . Parts Built 1 | . . . . . 1 . . . . . . . . . . . . . . Authchips . | . . . . . . . . . . . . . . . . . . . . Time 58 | . . . . . 58 . . . . . . . . . . . . . . Total Part Build Rating 7 | . . . . . 7 . . . . . . . . . . . . . . Parts Repaired 1 | . . . . 1 . . . . . . . . . . . . . . . Time 16 | . . . . 16 . . . . . . . . . . . . . . . Parts Recycled . | . . . . . . . . . . . . . . . . . . . . Recycled Matter . | . . . . . . . . . . . . . . . . . . . . Retrieved Matter . | . . . . . . . . . . . . . . . . . . . . Retrieved Components 9 | . . . . 9 . . . . . . . . . . . . . . . Parts Scanalyzed 4 | . . . . 4 . . . . . . . . . . . . . . . Part Schematics Acquired 4 | . . . . 4 . . . . . . . . . . . . . . . Parts Damaged . | . . . . . . . . . . . . . . . . . . . . Bothacking | -11 -10 -9 -9 -8 -7 -7 -7 -7 -7 -7 -6 -6 -6 -6 -6 -6 -5 -5 -4 ------------ Run | Yrd Mat Mat Min Mat Fac Was Fac Low Low Zio Pro Fac Ext Cet Arc Hub Fac DSF Fac Used RIF Installer . | . . . . . . . . . . . . . . . . . . . . Robots Hacked . | . . . . . . . . . . . . . . . . . . . . Non-combat . | . . . . . . . . . . . . . . . . . . . . Combat . | . . . . . . . . . . . . . . . . . . . . Robot Hacks Applied . | . . . . . . . . . . . . . . . . . . . . Relay Couplers Released 9 | . . . . . . . . . . . . . . . . 6 3 . . Machine Destruction 5 | . . . . . . . . . . . . . . . . 2 3 . . Programmers 4 | . . . . . . . . . . . . . . . . 4 . . . Fabnet Peak Effective % . | . . . . . . . . . . . . . . . . . . . . Robots Rewired 18 | . . . . . . . . . . . . . 18 . . . . . . Allies Hacked . | . . . . . . . . . . . . . . . . . . . . Hacks Repelled . | . . . . . . . . . . . . . . . . . . . . Allies | -11 -10 -9 -9 -8 -7 -7 -7 -7 -7 -7 -6 -6 -6 -6 -6 -6 -5 -5 -4 -------- Run | Yrd Mat Mat Min Mat Fac Was Fac Low Low Zio Pro Fac Ext Cet Arc Hub Fac DSF Fac Total Allies 34 | . . . . . . . . . . . . . 29 5 . . . . . Largest Group 13 | . . . . . . . . . . . . . 13 6 4 4 . . . Highest-Rated Group 519 | . . . . . . . . . . . . . 384 519 377 377 . . . Highest-Rated Ally 159 | . . . . . . . . . . . . . 159 153 96 96 . . . Total Orders . | . . . . . . . . . . . . . . . . . . . . Ally Attacks 375 | . . . . . . . . . . . . . 242 69 12 52 . . . Total Damage 10625 | . . . . . . . . . . . . . 5485 2429 514 2197 . . . Kills 77 | . . . . . . . . . . . . . 40 17 4 16 . . . Allies Corrupted 2 | . . . . . . . . . . . . . 2 . . . . . . Allies Melted 3 | . . . . . . . . . . . . . 2 1 . . . . . Intel | -11 -10 -9 -9 -8 -7 -7 -7 -7 -7 -7 -6 -6 -6 -6 -6 -6 -5 -5 -4 ------- Run | Yrd Mat Mat Min Mat Fac Was Fac Low Low Zio Pro Fac Ext Cet Arc Hub Fac DSF Fac Robot Analysis Total 3 | . 2 1 . . . . . . . . . . . . . . . . . Derelict Logs Recovered 7 | . . . 1 . . . . 1 1 2 2 . . . . . . . . Drone Launches . | . . . . . . . . . . . . . . . . . . . . Drone Recoveries . | . . . . . . . . . . . . . . . . . . . . Exploration | -11 -10 -9 -9 -8 -7 -7 -7 -7 -7 -7 -6 -6 -6 -6 -6 -6 -5 -5 -4 ------------- Run | Yrd Mat Mat Min Mat Fac Was Fac Low Low Zio Pro Fac Ext Cet Arc Hub Fac DSF Fac Turns Passed 12293 | 2 680 416 307 2029 1036 373 379 459 534 998 690 509 1204 524 445 678 61 146 823 Spaces Moved 6951 | 2 457 201 169 899 411 225 238 390 442 855 357 314 700 271 168 324 35 78 415 Core 90 | . . . . . . . . . . . . . . . . . . . 90 Treads 2783 | . . 113 169 899 411 33 . . . . . . . 233 168 324 35 78 320 Legs 110 | 2 108 . . . . . . . . . . . . . . . . . . Wheels 3968 | . 349 88 . . . 192 238 390 442 855 357 314 700 38 . . . . 5 Hover . | . . . . . . . . . . . . . . . . . . . . Flight . | . . . . . . . . . . . . . . . . . . . . Fastest Speed 50 | 120 90 105 160 157 225 115 115 115 115 115 115 100 100 100 160 160 160 160 50 Average Speed 137 | 120 100 135 160 181 231 132 115 115 115 115 115 100 104 152 160 160 160 160 149 Slowest Speed 480 | 120 190 160 160 245 232 232 115 115 115 115 115 100 115 160 160 160 160 160 480 Overloaded Moves . | . . . . . . . . . . . . . . . . . . . . Propulsion Burnouts . | . . . . . . . . . . . . . . . . . . . . Robots Hopped . | . . . . . . . . . . . . . . . . . . . . Cave-ins Triggered 2 | . . . . . . . . . . . . . . . . . . . 2 Exploration Rate (%) 45 | 2 69 19 40 73 6 100 7 65 55 89 43 6 81 73 90 34 1 53 13 Regions Visited 19 Branch Regions 9 Pre-discovered Areas 4 | . . . . . . . . . . 4 . . . . . . . . . Known Exits Taken 12 | . . . . 1 . . 1 1 1 1 1 1 1 1 1 1 1 . . Unknown Exits Taken 4 | 1 1 1 1 . . . . . . . . . . . . . . . . Scrap Searched 11 | . . . 2 . . . . 1 2 3 3 . . . . . . . . Spaces Dug 44 | . . . . . . . . . 2 . 12 18 9 . . . . . 3 Terrain Destroyed 715 | . 35 42 . 53 1 167 . 2 57 . 15 25 100 92 . 76 . . 50 Melee 7 | . . . . . . . . . . . . 4 . . . . . . 3 Projectile 100 | . . . . 27 1 . . 2 2 . 15 21 8 3 . 11 . . 10 AOE 608 | . 35 42 . 26 . 167 . . 55 . . . 92 89 . 65 . . 37 Terrain Rammed . | . . . . . . . . . . . . . . . . . . . . Walls Destroyed . | . . . . . . . . . . . . . . . . . . . . Machines Disabled . | . . . . . . . . . . . . . . . . . . . . Actions | -11 -10 -9 -9 -8 -7 -7 -7 -7 -7 -7 -6 -6 -6 -6 -6 -6 -5 -5 -4 --------- Run | Yrd Mat Mat Min Mat Fac Was Fac Low Low Zio Pro Fac Ext Cet Arc Hub Fac DSF Fac Total 8780 | 1 564 284 192 1140 481 278 333 396 458 870 600 429 1037 336 327 403 38 95 518 Wait 738 | . 21 33 2 76 28 13 82 5 . 5 213 58 21 . 149 24 . . 8 Move 6931 | 1 456 200 168 898 411 224 237 389 441 854 356 313 699 270 167 323 34 77 413 Hop . | . . . . . . . . . . . . . . . . . . . . Pick Up 122 | . 9 11 5 23 12 5 3 . 3 5 . 2 12 11 . 3 . 5 13 Fast Attach 14 | . . . . 5 1 2 . . . . . . 1 2 . . . 3 . Attach 57 | . 7 5 . 4 2 2 . . 1 . . 1 6 4 . 3 2 1 19 Detach . | . . . . . . . . . . . . . . . . . . . . Swap 124 | . 5 4 3 17 3 3 3 . 2 1 . 8 43 13 2 7 1 2 7 Drop 102 | . 4 1 6 31 14 8 3 . 3 4 . . 9 9 . . . 5 5 Fire 428 | . 62 30 8 86 10 21 5 2 8 1 31 31 32 14 5 32 . 2 48 Melee 88 | . . . . . . . . . . . . 16 40 13 4 11 1 . 3 Ram . | . . . . . . . . . . . . . . . . . . . . Kick . | . . . . . . . . . . . . . . . . . . . . Crush . | . . . . . . . . . . . . . . . . . . . . Escape Stasis 23 | . . . . . . . . . . . . . 21 . . . . . 2 Rewire 153 | . . . . . . . . . . . . . 153 . . . . . . Trap . | . . . . . . . . . . . . . . . . . . . . Miscellaneous . | . . . . . . . . . . . . . . . . . . . . Route ------- -11/Scrapyard -10/Materials (discovered 2 exits: *Mat / [*Min]) -9/Materials -9/Mines -8/Materials -7/Factory -7/Waste -7/Factory -7/Lower Caves -7/Lower Caves (discovered 2 exits: Fac / *Zio) -7/Zion (discovered 2 exits: Dee / *Pro) -6/Proximity Caves -6/Factory (discovered 2 exits: Low / *Ext) -6/Extension (discovered 2 exits: *Fac / *Cet) -6/Cetus (discovered 2 exits: *Fac / *Arc) -6/Archives (discovered 3 exits: *Fac / *Hub x2) -6/Hub_04(d) (discovered 3 exits: *Fac x3) -5/Factory -5/DSF -4/Factory (discovered 3 exits: *Upp x2 / Arm) History --------- Turn | Location | Event 1 | -11/Scrapyard | Discovered new exit (range 1) 3 | -11/Scrapyard | Entered Materials 286 | -10/Materials | Core integrity fell below 50% 313 | -10/Materials | Build established: Mutant 366 | -10/Materials | Discovered new exit (range 15) 538 | -10/Materials | Core integrity fell below 20% 563 | -10/Materials | Discovered new exit (range 10) 683 | -10/Materials | Entered another Materials area 683 | -9/Materials | Evolved 2 slots: Utility x2 1040 | -9/Materials | Discovered new exit (range 12) 1099 | -9/Materials | Entered Mines 1350 | -9/Mines | Learned Materials non-interactive machine intel 1364 | -9/Mines | Discovered new exit (range 10) 1399 | -9/Mines | Assembled infested the area 1406 | -9/Mines | Entered Materials 1406 | -8/Materials | Evolved 2 slots: Utility x2 1407 | -8/Materials | Loaded intel: 44 non-interactive machine locations 1710 | -8/Materials | Build established: Skirmisher 2046 | -8/Materials | Build established: Mutant 2459 | -8/Materials | Repaired Imp. Ion Engine 3395 | -8/Materials | Discovered new exit (range 13) 3433 | -8/Materials | Identified exit to Factory 3435 | -8/Materials | Entered Factory 3435 | -7/Factory | Evolved 2 slots: Utility x2 3991 | -7/Factory | Build established: Skirmisher 4230 | -7/Factory | Fabricated Micro-nuke Launcher (x1) 4471 | -7/Factory | Sucked down chute 4471 | -7/Factory | Entered Waste 4541 | -7/Waste | Spotted C-40 Crusher 4545 | -7/Waste | Destroyed C-40 Crusher 4545 | -7/Waste | Spotted C-40 Crusher 4555 | -7/Waste | Destroyed C-40 Crusher 4556 | -7/Waste | Spotted C-40 Crusher 4567 | -7/Waste | Destroyed C-40 Crusher 4572 | -7/Waste | Spotted C-40 Crusher 4590 | -7/Waste | Spotted C-40 Crusher 4613 | -7/Waste | Destroyed C-40 Crusher 4619 | -7/Waste | Spotted C-40 Crusher 4621 | -7/Waste | Destroyed C-40 Crusher 4633 | -7/Waste | Destroyed C-40 Crusher 4809 | -7/Waste | Discovered new exit (range 13) 4843 | -7/Waste | Identified exit to Factory 4844 | -7/Waste | Entered Factory 5192 | -7/Factory | Discovered new exit (range 16) 5222 | -7/Factory | Identified exit to Lower Caves 5223 | -7/Factory | Entered Lower Caves 5403 | -7/Lower Caves | Encountered a Warlord checkpoint 5424 | -7/Lower Caves | Learned location of 1 exit from Factory 5558 | -7/Lower Caves | Discovered new exit (range 11) 5599 | -7/Lower Caves | Identified exit to Lower Caves 5682 | -7/Lower Caves | Entered another Lower Caves area 5683 | -7/Lower Caves | Encountered a Warlord checkpoint 5738 | -7/Lower Caves | Identified exit to Factory 6140 | -7/Lower Caves | Discovered new exit (range 10) 6155 | -7/Lower Caves | Identified exit to Zion 6216 | -7/Lower Caves | Entered Zion 6257 | -7/Zion | Discovered new exit (range 12) 6325 | -7/Zion | System corruption cleaned by Quarantine Array 6558 | -7/Zion | Learned Factory emergency access door positions 6609 | -7/Zion | Identified exit to Deep Caves 6635 | -7/Zion | Learned location of Warlord (-5) 6679 | -7/Zion | Received a visual enhancement algorithm 6696 | -7/Zion | Given A8's code to call for help 6744 | -7/Zion | Learned location of Armory (-4) 6762 | -7/Zion | Learned Factory emergency access door positions 6851 | -7/Zion | Visited the Megawrench Repair Shop 6851 | -7/Zion | Megawrench repaired 9 parts 7098 | -7/Zion | Found GAL Module 7213 | -7/Zion | Identified exit to Proximity Caves 7214 | -7/Zion | Entered Proximity Caves 7216 | -6/Proximity Caves | Spotter reported a threat 7217 | -6/Proximity Caves | Spotter reported a threat 7238 | -6/Proximity Caves | Spotted B-75 Beast 7350 | -6/Proximity Caves | Spotter reported a threat 7491 | -6/Proximity Caves | Learned Factory trap positions 7601 | -6/Proximity Caves | Discovered exit to Factory (range 13) 7756 | -6/Proximity Caves | Received a Behemoth hack from an annoying Tinkerer 7904 | -6/Proximity Caves | Entered Factory 7904 | -6/Factory | Evolved 2 slots: Propulsion x2 7905 | -6/Factory | Identified exit to Lower Caves 7906 | -6/Factory | Identified exit to Extension 7907 | -6/Factory | Loaded intel: 69 trap records 8254 | -6/Factory | Search patrols dispatched 8413 | -6/Factory | Entered Extension 8419 | -6/Extension | Disrupted transfer network 8450 | -6/Extension | Rescued a captive Derelict 8554 | -6/Extension | Rescued a captive Derelict 8555 | -6/Extension | Rescued a captive Derelict 8754 | -6/Extension | Rescued a captive Derelict 8755 | -6/Extension | Rescued a captive Derelict 8919 | -6/Extension | Lost 7 allies 8971 | -6/Extension | Spotted B-75 Beast 8995 | -6/Extension | Spotted B-75 Beast 9005 | -6/Extension | Destroyed B-75 Beast 9022 | -6/Extension | Destroyed B-75 Beast 9046 | -6/Extension | Lost 11 allies 9113 | -6/Extension | First assault squad dispatched 9178 | -6/Extension | Rescued a captive Derelict 9179 | -6/Extension | Rescued a captive Derelict 9206 | -6/Extension | Rescued A7 9312 | -6/Extension | Rescued a captive Derelict 9312 | -6/Extension | Rescued a captive Derelict 9400 | -6/Extension | Rescued a captive Derelict 9570 | -6/Extension | Discovered new exit (range 10) 9571 | -6/Extension | Discovered new exit (range 6) 9598 | -6/Extension | Identified exit to Factory 9602 | -6/Extension | Identified exit to Cetus 9617 | -6/Extension | Entered Cetus 9617 | -6/Cetus | Accompanied by 5 allies (A7) 9622 | -6/Cetus | Acquired a Cetus Manufacturing Module code from A7 9626 | -6/Cetus | Spotted Cetus Guard 9627 | -6/Cetus | Spotted Cetus Guard 9631 | -6/Cetus | Spotted Cetus Guard 9635 | -6/Cetus | Spotted Cetus Guard 9643 | -6/Cetus | Allies destroyed Cetus Guard 9653 | -6/Cetus | Destroyed Cetus Guard 9654 | -6/Cetus | Allies destroyed Cetus Guard 9656 | -6/Cetus | Allies destroyed Cetus Guard 9684 | -6/Cetus | Lost 3 allies 9815 | -6/Cetus | Started Cetus Manufacturing Module 9840 | -6/Cetus | Manufactured an Enhanced Grunt 9844 | -6/Cetus | Extracted ID and sensor layout for unrecognized location from A7's data core 9846 | -6/Cetus | Discovered new exit (range 22) 9865 | -6/Cetus | Manufactured an Enhanced Grunt 9890 | -6/Cetus | Manufactured an Enhanced Grunt 9915 | -6/Cetus | Manufactured an Enhanced Grunt 9940 | -6/Cetus | Manufactured an Enhanced Grunt 9996 | -6/Cetus | Spotted Cetus Guard 9998 | -6/Cetus | Spotted Cetus Guard 10001 | -6/Cetus | Spotted Cetus Guard 10006 | -6/Cetus | Spotted Cetus Guard 10006 | -6/Cetus | Destroyed Cetus Guard 10014 | -6/Cetus | Allies destroyed Cetus Guard 10016 | -6/Cetus | Discovered exit to Factory (range 22) 10018 | -6/Cetus | Allies destroyed Cetus Guard 10021 | -6/Cetus | Allies destroyed Cetus Guard 10035 | -6/Cetus | Met Revision 17 10139 | -6/Cetus | Identified exit to Archives 10141 | -6/Cetus | Entered Archives 10141 | -6/Archives | Accompanied by 4 allies 10182 | -6/Archives | Discovered new exit (range 22) 10186 | -6/Archives | Build established: Scavenger-Mutant 10201 | -6/Archives | Unable to access archive contents 10201 | -6/Archives | Unable to access archive contents 10209 | -6/Archives | Discovered new exit (range 22) 10217 | -6/Archives | Unable to access archive contents 10232 | -6/Archives | Discovered exit to Factory (range 21) 10246 | -6/Archives | Unable to access archive contents 10270 | -6/Archives | Unable to access archive contents 10581 | -6/Archives | Identified exit to Hub_04(d) 10586 | -6/Archives | Entered Hub_04(d) 10586 | -6/Hub_04(d) | Accompanied by 4 allies 10661 | -6/Hub_04(d) | Discovered exit to Factory (range 9) 10725 | -6/Hub_04(d) | Discovered exit to Factory (range 13) 10744 | -6/Hub_04(d) | Discovered exit to Factory (range 21) 10936 | -6/Hub_04(d) | First assault squad dispatched 10993 | -6/Hub_04(d) | Garrison activated, responded to threat 11264 | -6/Hub_04(d) | Entered Factory 11264 | -5/Factory | Evolved 2 slots: Power x1, Weapon x1 11325 | -5/Factory | Identified exit to DSF 11325 | -5/Factory | Entered DSF 11348 | -5/DSF | Additional patrols routed to DSF 11383 | -5/DSF | Discovered new exit (range 21) 11470 | -5/DSF | Identified exit to Factory 11471 | -5/DSF | Entered Factory 11471 | -4/Factory | Evolved 2 slots: Propulsion x2 11633 | -4/Factory | Identified exit to Upper Caves 11633 | -4/Factory | Identified exit to Armory 11735 | -4/Factory | Spotted B-86 Titan 11850 | -4/Factory | Spotted B-86 Titan 11905 | -4/Factory | Crushed by falling debris 11912 | -4/Factory | Crushed by falling debris 11913 | -4/Factory | System corruption reached 10% 11943 | -4/Factory | Lost 4 parts (1n2u1w) 12124 | -4/Factory | Lost 3 parts (2n1u) 12226 | -4/Factory | Spotted Striker 12227 | -4/Factory | Cargo convoy interrupted 12238 | -4/Factory | Released all parts (8) 12245 | -4/Factory | Core integrity fell below 50% 12252 | -4/Factory | Core integrity fell below 20% 12269 | -4/Factory | Lost 12 parts (1p3n5u3w) 12294 | -4/Factory | Destroyed by P-70 Sage with High-powered Shock Rifle Last Messages --------------- 12245_ M-28 Smith fits Backup Power III on A-27 Freighter. 12247_ U-05 Engineer builds a Door. 12247_ Penetrated by Slug. 12247_ Slug penetrates P-70 Sage. 12247_ Slug penetrates Wall. 12247_ M-28 Smith repairs I-47 Archangel. 12248_ T-07 Excavator destroyed. 12248_ Slug penetrates X-77 Beamer. 12248_ Slug penetrates P-70 Sage. 12249_ Slug penetrates X-77 Beamer. 12249_ X-77 Beamer destroyed. 12255_ System corrupted: Matter fused (-9). 12264_ Slug penetrates Wall. 12264_ Penetrated by Slug. 12274_ Nuclear Reactor explodes. 12274_ K-01 Serf destroyed. 12274_ W-44 Eye destroyed. 12277_ SGA&SZCBR7 IUBUH8BSE 12294_ System corrupted: Energy discharge (-31). Map ----- +----------------------------------------------------+ | ?????????????????????????????????????????????????? | | ?????????????????????????????????????????????????? | | ?????????????????????????????????????????????????? | | ?????????????????????????????????????????????????? | | ?????????????????????????????????????????????????? | | ?????????????????????????????????????????????????? | | ?????????????????????????????????????????????????? | | ?????????????????????????????????????????????????? | | ?????????????????????????????????????????????????? | | ???????????????????????????????????????????????##? | | ??????????????????????????????????????????##### # | | ??????????????????????????????????????????# | | ?????????????????????????????????????????## | | ?????????????????????????????????????????# | | ?????????????????????????????????????????# | | ????????????????????????????????########## | | ????????????????????????????????# | | ????????????????????????????"???# | | ?????????????????????????? # # | | ?????????????????????????"""""" # """"""" # | | ??????????????????????????"""""?# """"""" # | | ??????????????????????????"""""?# """"""" # | | ???????????????????????????"""" # """"""" # ! | | ??????????????????????????? # # | | ?????????????????###########+###;#####/####### | | ?????????? @ p A | | ?????????? > p | | ?????????? t | | ??????????? ##############################?### | | ??????????? ?????????????????????????????????????? | | ?????????????????????????????????????????????????? | | ?????????????????????????????????????????????????? | | ?????????????????????????????????????????????????? | | ?????????????????????????????????????????????????? | | ?????????????????????????????????????????????????? | | ?????????????????????????????????????????????????? | | ?????????????????????????????????????????????????? | | ?????????????????????????????????????????????????? | | ?????????????????????????????????????????????????? | | ?????????????????????????????????????????????????? | | ?????????????????????????????????????????????????? | | ?????????????????????????????????????????????????? | | ???????????????????H?????????????????????????????? | | ?????????????????????????????????????????????????? | | ?????????????????????????????????????????????????? | | ?????????????????????????????????????????????????? | | ?????????????????????????????????????????????????? | | ?????????????????????????????????????????????????? | | ?????????????????????????????????????????????????? | | ?????????????????????????????????????????????????? | +----------------------------------------------------+ Best States ------------- Heat Dissipation 83 Coolant Potential 100 Energy Generation 45 Energy Capacity 600 Matter Stores 300 Matter Capacity 300 Sight Range 22 Robot Scan Range 15 Terrain Scan Density 10 Armor Coverage 900 Phase Shifting 5 Evasion (%) 55 Targeting Accuracy 14 Melee Accuracy 8 Target Analysis 6 Recoil Reduction 9 Offensive Hacking 14 Item Schematics ----------------- Imp. Melee Analysis Suite | -8/Materials | Scanalyzed Grenade Launcher | -8/Materials | Scanalyzed Imp. Heat Sink | -8/Materials | Scanalyzed Seismic Detector | -8/Materials | Scanalyzed Gatling Laser | -7/Zion | Archive Focal Shield | -7/Zion | Archive Imp. Carbon-fiber Leg | -7/Zion | Archive Flexi-carbon Leg | -7/Zion | Archive Adv. Heat Sink | -7/Zion | Archive Mak. Salvage Targeting Computer | -7/Zion | Archive Hvy. Phase Cannon | -7/Zion | Archive Imp. Dynamic Insulation System | -7/Zion | Archive Hrd. Heavy Armor Plating | -7/Zion | Archive Imp. Hardlight Generator | -7/Zion | Archive Imp. Proton Missile Launcher | -7/Zion | Archive Arm. Huge Wheel | -7/Zion | Archive Energy Filter | -7/Zion | Archive EM Disruption Field | -7/Zion | Archive Mass Driver | -6/Hub_04(d) | Hacked Hyp. Gauss Cannon | -6/Hub_04(d) | Hacked Robot Schematics ------------------ Y-54 Guardian | -7/Zion | Archive O-24 Administrator | -7/Zion | Archive R-06 Scavenger | -7/Zion | Archive H-77 Assassin | -7/Zion | Archive Fabricated ------------ Micro-nuke Launcher | x1 | -7/Factory | Preloaded Alien Tech Used ----------------- None Achievements -------------- Generalissimo Hard Hitter Challenges ------------ None Game ------ Seed GrapheneAccelerationInjector Manual? 0 Play Time 03:02:42 Cumulative 195.8 hours Start 2024.03.17 @ 07:49:15 End 2024.03.17 @ 11:24:36 Sessions 1 Manual Loads 0 Difficulty Rogue Special Mode None Game No. 147 Rogue 137 Adventurer 0 Explorer 10 Win Type - Total 3 Types 3/0/0/0/0/0/0/0/0 Lore% 59 Gallery% 69 Achievement% 52 Wizard Run 0 Options --------- Layout 1 ASCII 0 Keyboard 0 Movement Arrows Keybinds 1 Fullscreen 1 Font 24/Smallcaps Map View 50x35 Zoom Use 0% Tactical HUD 1 Map Filters NONE Filters NONE Steam 1 RUN: 150b9496-10c0-43d3-b736-43f6b4f304f4